bitfinex/quotes_BTCUSD_20260215
["timestamp","ask_amount","ask_price","bid_price","bid_amount"]
[1771146651507,0.07079607,70626.0,70621.0,0.16010718]
[1771146651710,0.07079607,70626.0,70620.0,0.07080087]
[1771146652150,4e-05,70630.0,70619.0,0.00022]
[1771146652267,0.07079646,70625.0,70624.0,0.00022]
[1771146653436,0.07079586,70626.0,70616.0,0.00022]
[1771146653437,0.02250427,70629.0,70616.0,0.00022]
[1771146653734,0.07079984,70622.0,70617.0,0.07080415]
[1771146654436,0.07079978,70622.0,70616.0,0.0710252]
[1771146654647,0.07079866,70623.0,70617.0,0.07080389]
[1771146655197,0.07079976,70622.0,70617.0,0.07080389]
[1771146655727,0.07079693,70625.0,70619.0,0.07080177]
[1771146655919,0.07079759,70624.0,70619.0,0.07080177]
[1771146656476,0.00024,70630.0,70619.0,0.07080177]
[1771146656679,0.07079612,70626.0,70620.0,0.07080102]
[1771146656895,0.07079715,70625.0,70616.0,0.00022]
[1771146657138,0.07079748,70624.0,70619.0,0.07080202]
[1771146657355,0.07079715,70625.0,70619.0,0.07080202]
[1771146657980,0.00024,70630.0,70617.0,0.0105653]
[1771146658209,1.10496314,70640.0,70616.0,0.00022]
[1771146658210,0.28316659,70640.0,70622.0,0.0105653]
[1771146658344,0.07121809,70636.0,70630.0,0.07079074]
[1771146658751,0.00043221,70636.0,70631.0,0.07079035]
[1771146658982,0.07121786,70636.0,70631.0,0.07079035]
[1771146659185,0.00043221,70636.0,70630.0,0.07079097]
[1771146659360,0.00043221,70636.0,70625.0,0.17067248]
[1771146659361,0.00043221,70636.0,70631.0,0.07079035]
[1771146659701,0.00043221,70636.0,70632.0,0.07078912]
[1771146659904,0.0712177,70636.0,70630.0,0.07079127]
[1771146660110,0.07078645,70635.0,70630.0,0.07079127]
[1771146660352,4e-05,70650.0,70638.0,0.17151194]
[1771146660554,0.01165712,70660.0,70649.0,0.07077241]
[1771146660757,0.01165712,70660.0,70649.0,0.28308857]
[1771146660758,0.07076296,70659.0,70649.0,0.28308857]
[1771146660963,0.07076475,70657.0,70651.0,0.07077011]
[1771146661169,0.07076591,70656.0,70650.0,0.0707696]
[1771146661379,0.07076945,70652.0,70646.0,0.07077489]
[1771146661553,0.02250427,70656.0,70633.0,0.42472481]
[1771146661785,0.02250427,70656.0,70650.0,0.07077058]
[1771146661990,0.01165712,70660.0,70643.0,0.16010718]
[1771146662166,0.07076577,70656.0,70650.0,0.07077096]
[1771146662520,0.07076446,70657.0,70651.0,0.07077034]
[1771146662723,0.07076504,70658.0,70652.0,0.07076864]
[1771146662974,5.5e-05,70656.0,70652.0,0.07076864]
[1771146663204,5.5e-05,70656.0,70653.0,0.07076794]
[1771146663426,5.5e-05,70656.0,70651.0,0.07076855]
[1771146663632,5.5e-05,70656.0,70650.0,0.07077087]
[1771146663813,0.07082077,70656.0,70650.0,0.07077087]
[1771146664191,0.07076791,70654.0,70648.0,0.07077323]
[1771146664368,0.07076845,70653.0,70647.0,0.07077279]
[1771146664828,0.02250427,70655.0,70645.0,0.07077553]
[1771146665028,5.5e-05,70656.0,70640.0,4e-05]
[1771146665029,0.02250427,70650.0,70640.0,4e-05]
[1771146665416,0.07077099,70651.0,70645.0,0.07077609]
[1771146665822,5.5e-05,70656.0,70640.0,1.01576956]
[1771146666037,5.5e-05,70656.0,70648.0,0.16010718]
[1771146666249,5.5e-05,70656.0,70651.0,0.07076993]
[1771146667274,0.0002,70653.0,70651.0,0.07076993]
[1771146668567,0.0002,70653.0,70650.0,0.0707714]
[1771146669031,0.0002,70653.0,70644.0,0.07077658]
[1771146669347,0.07077088,70651.0,70645.0,0.07077581]
[1771146669547,0.07076953,70652.0,70645.0,0.07077581]
[1771146669742,0.07077883,70643.0,70638.0,0.00012958]
[1771146669948,0.0002,70653.0,70638.0,0.00012958]
[1771146669949,0.02250427,70648.0,70638.0,0.00012958]
[1771146670207,0.07077776,70644.0,70638.0,0.07091249]
[1771146670486,0.09328203,70644.0,70638.0,0.07091249]
[1771146670687,0.07077842,70643.0,70638.0,0.07091249]
[1771146670895,0.09328269,70643.0,70638.0,0.07091249]
[1771146671335,0.09328269,70643.0,70638.0,0.00012958]
[1771146671538,0.02250427,70642.0,70638.0,0.00012958]
[1771146671740,0.07078042,70641.0,70634.0,0.07078576]
[1771146671942,0.07078502,70637.0,70634.0,0.00012963]
[1771146672182,0.07078,70642.0,70634.0,0.00012963]
[1771146672420,5.5e-05,70646.0,70638.0,0.07078309]
[1771146672618,0.07077701,70645.0,70638.0,0.07078309]
[1771146672805,0.07077701,70645.0,70639.0,0.07078189]
[1771146673385,0.07077859,70643.0,70638.0,0.07078309]
[1771146674175,0.0236101,70643.0,70638.0,0.00022]
[1771146674395,0.0236101,70638.0,70634.0,0.070917]
[1771146674605,0.0236101,70638.0,70634.0,0.00012963]
[1771146674820,0.17311932,70645.0,70634.0,0.00012963]
[1771146674821,0.07077673,70645.0,70634.0,0.07091606]
[1771146675030,5.5e-05,70644.0,70639.0,0.0707818]
[1771146675442,5.5e-05,70644.0,70640.0,0.07078094]
[1771146675642,5.5e-05,70644.0,70635.0,0.16171526]
[1771146675849,5.5e-05,70644.0,70634.0,0.28327137]
[1771146675850,4e-05,70650.0,70637.0,0.16171526]
[1771146676061,4e-05,70650.0,70634.0,0.00012963]
[1771146676062,0.07081188,70650.0,70640.0,0.07078142]
[1771146676266,4e-05,70650.0,70644.0,0.07077673]
[1771146676471,4e-05,70650.0,70639.0,0.08218618]
[1771146676673,4e-05,70650.0,70646.0,0.07077486]
[1771146676875,0.07077576,70646.0,70640.0,0.07078056]
[1771146677095,4e-05,70650.0,70634.0,0.16184489]
[1771146677096,4e-05,70650.0,70646.0,0.07077486]
[1771146677701,4e-05,70650.0,70643.0,0.0707781]
[1771146677993,0.07077294,70649.0,70643.0,0.0707781]
[1771146678814,0.07077351,70648.0,70642.0,0.07077745]
[1771146679146,0.09438411,70649.0,70643.0,0.07077808]
[1771146681109,0.09438411,70649.0,70643.0,0.07099808]
[1771146682664,0.09438411,70649.0,70643.0,0.0709983]
[1771146682665,0.0236101,70647.0,70643.0,0.0709983]
[1771146683534,0.0236101,70647.0,70643.0,0.00022]
[1771146683714,0.0236101,70648.0,70639.0,0.07078205]
[1771146683942,0.0236101,70648.0,70630.0,0.00026]
[1771146684175,0.07077831,70644.0,70638.0,0.06040318]
[1771146684871,0.07077854,70643.0,70638.0,0.06040318]
[1771146685850,0.07078397,70638.0,70633.0,0.07078838]
[1771146686109,0.0236101,70638.0,70633.0,0.07078838]
[1771146686256,0.09439385,70638.0,70633.0,0.07078838]
[1771146686614,0.0943939,70638.0,70633.0,0.0707883]
[1771146686788,0.0236101,70638.0,70633.0,0.0707883]
[1771146686936,0.0236101,70638.0,70634.0,0.07091685]
[1771146687135,0.0236101,70638.0,70635.0,0.0707858]
[1771146688394,0.07077571,70646.0,70634.0,0.00012963]
[1771146688565,0.07077571,70646.0,70640.0,0.07078087]
[1771146688766,0.0236101,70648.0,70639.0,0.07078181]
[1771146688767,0.07077712,70645.0,70639.0,0.07078181]
[1771146688962,0.0236101,70648.0,70640.0,0.07078084]
[1771146688963,0.07077441,70647.0,70640.0,0.07078084]
[1771146689299,0.07077441,70647.0,70641.0,0.07077994]
[1771146689300,0.07077524,70647.0,70641.0,0.07077994]
[1771146689517,0.07077974,70642.0,70630.0,0.90291211]
[1771146689668,0.0236101,70641.0,70637.0,0.07078396]
[1771146690274,0.07077843,70643.0,70636.0,0.07078364]
[1771146690450,0.07078198,70640.0,70634.0,0.07091641]
[1771146690650,0.09439208,70640.0,70635.0,0.00022]
[1771146690879,0.07078242,70639.0,70635.0,0.00022]
[1771146691070,0.07078298,70639.0,70635.0,0.00022]
[1771146691274,0.07078218,70640.0,70635.0,0.00022]
[1771146691551,0.07078257,70639.0,70635.0,0.00022]
[1771146691766,0.0236101,70644.0,70635.0,0.00022]
[1771146691968,0.0236101,70643.0,70635.0,0.00022]
[1771146692178,0.07078373,70638.0,70635.0,0.00022]
[1771146692371,0.07078234,70640.0,70635.0,0.00022]
[1771146692752,0.07078269,70639.0,70635.0,0.00022]
[1771146692954,0.07078344,70638.0,70635.0,0.00022]
[1771146693140,0.09439279,70639.0,70635.0,0.00022]
[1771146693544,0.07077862,70643.0,70635.0,0.00022]
[1771146693767,0.07077988,70642.0,70636.0,0.07078514]
[1771146694043,0.07077889,70643.0,70637.0,0.07078399]
[1771146694186,0.07077973,70642.0,70637.0,0.07078399]
[1771146694387,0.07077889,70643.0,70637.0,0.07078399]
[1771146694839,0.07077978,70642.0,70636.0,0.07078514]
[1771146695112,0.07078145,70640.0,70635.0,0.00022]
[1771146695519,0.07078145,70640.0,70635.0,0.07100638]
[1771146696222,0.07078277,70639.0,70635.0,0.00022]
[1771146696449,0.07078378,70638.0,70635.0,0.00022]
[1771146696662,0.28312271,70641.0,70635.0,0.00022]
[1771146696865,0.07078218,70640.0,70635.0,0.00022]
[1771146697079,0.07078265,70639.0,70635.0,0.00022]
[1771146697282,0.07078479,70637.0,70635.0,0.00022]
[1771146697694,0.07078543,70636.0,70635.0,0.00022]
[1771146697904,0.07078479,70637.0,70635.0,0.00022]
[1771146698112,0.07078543,70636.0,70635.0,0.00022]
[1771146698522,0.07078479,70637.0,70635.0,0.00022]
[1771146698726,0.0236101,70640.0,70635.0,0.00022]
[1771146698727,0.09439185,70640.0,70635.0,0.00022]
[1771146699162,0.07078259,70639.0,70635.0,0.00022]
[1771146699367,0.07078259,70639.0,70634.0,0.0709167]
[1771146699791,0.07078259,70639.0,70634.0,0.00012963]
[1771146700776,0.0236101,70638.0,70634.0,0.00012963]
[1771146701170,0.07078489,70637.0,70634.0,0.00012963]
[1771146701928,0.09439536,70638.0,70634.0,0.00012963]
[1771146702800,0.07078885,70633.0,70630.0,0.00026]
[1771146702971,0.02446348,70633.0,70630.0,0.00038973]
[1771146703182,0.07078767,70634.0,70630.0,0.00038973]
[1771146703394,0.07078809,70635.0,70630.0,0.00038973]
[1771146703757,0.07078857,70633.0,70630.0,0.00038973]
[1771146703960,0.07078786,70634.0,70630.0,0.00038973]
[1771146704657,0.07078949,70632.0,70630.0,0.00038973]
[1771146705081,0.07078965,70632.0,70630.0,0.00038973]
[1771146705277,0.07079044,70631.0,70627.0,0.00022]
[1771146705516,0.02337415,70632.0,70627.0,0.00065221]
[1771146705749,0.07078806,70635.0,70629.0,0.07079195]
[1771146705944,0.0707876,70634.0,70629.0,0.07079195]
[1771146706170,0.0707876,70634.0,70628.0,0.07079184]
[1771146706723,0.0707876,70634.0,70627.0,0.07144496]
[1771146706724,0.07078848,70633.0,70627.0,0.07144496]
[1771146706842,0.07078958,70632.0,70627.0,0.00065221]
[1771146707239,0.02337415,70637.0,70626.0,0.00022]
[1771146707240,0.07079345,70628.0,70626.0,0.00022]
[1771146707441,0.00043245,70628.0,70622.0,0.07079932]
[1771146707650,0.07122619,70628.0,70623.0,0.07101839]
[1771146708700,0.07079458,70627.0,70623.0,0.00022]
[1771146709798,0.07122619,70628.0,70623.0,0.00022]
[1771146710261,0.07079446,70627.0,70623.0,0.00022]
[1771146711343,0.07122782,70628.0,70623.0,0.07101846]
[1771146711558,0.07079465,70627.0,70623.0,0.00022]
[1771146711779,0.07079558,70626.0,70623.0,0.00022]
[1771146712804,0.07079746,70624.0,70623.0,0.00022]
[1771146713644,0.09417161,70624.0,70623.0,0.00022]
[1771146714001,0.02337415,70624.0,70623.0,0.00022]
[1771146714206,0.0707968,70625.0,70623.0,0.00022]
[1771146714408,0.00043245,70628.0,70624.0,0.07079709]
[1771146714605,0.07122594,70628.0,70623.0,0.07101798]
[1771146714827,0.00043245,70628.0,70623.0,0.07101798]
[1771146715879,0.07122595,70628.0,70623.0,0.00022]
[1771146716028,0.07079549,70626.0,70623.0,0.00022]
[1771146716243,0.07079503,70627.0,70623.0,0.00022]
[1771146716610,0.07079562,70626.0,70623.0,0.00022]
[1771146717183,0.07079503,70627.0,70623.0,0.00022]
[1771146719467,0.07079503,70627.0,70622.0,0.0606181]
[1771146719987,0.07079503,70627.0,70621.0,0.0708001]
[1771146720354,0.07079066,70631.0,70621.0,0.02453177]
[1771146720582,0.07088263,70631.0,70626.0,0.07079512]
[1771146721126,0.90325324,70640.0,70620.0,0.90327324]
[1771146721241,0.07078585,70636.0,70630.0,0.07079114]
[1771146721464,0.07078242,70639.0,70628.0,0.02453177]
[1771146721666,0.07078898,70633.0,70627.0,0.07079353]
[1771146722271,0.07079004,70632.0,70626.0,0.07079372]
[1771146722481,5.5e-05,70637.0,70624.0,0.33924]
[1771146722682,5.5e-05,70637.0,70633.0,0.07078748]
[1771146722881,5.5e-05,70638.0,70633.0,0.07078748]
[1771146723563,5.5e-05,70638.0,70634.0,0.07078742]
[1771146723745,6e-05,70638.0,70634.0,0.07078742]
[1771146723946,6e-05,70638.0,70635.0,0.0707861]
[1771146724310,6e-05,70638.0,70634.0,0.07078742]
[1771146724867,0.33924,70637.0,70620.0,0.00069245]
[1771146725067,0.90301324,70630.0,70620.0,0.00069245]
[1771146725315,0.35244673,70636.0,70620.0,0.00069245]
[1771146725316,0.07078993,70632.0,70625.0,0.07079584]
[1771146725644,0.07078993,70632.0,70620.0,1.06237338]
[1771146725645,0.17207012,70634.0,70620.0,0.00069245]
[1771146725915,0.07080011,70622.0,70617.0,0.07080425]
[1771146726221,4e-05,70630.0,70616.0,0.00022]
[1771146726430,4.898e-05,70630.0,70620.0,4e-05]
[1771146726573,0.90306222,70630.0,70625.0,0.07079612]
[1771146726776,0.28315325,70634.0,70620.0,4e-05]
[1771146726777,0.07078477,70637.0,70621.0,0.28319787]
[1771146727084,0.07078876,70633.0,70627.0,0.07079405]
[1771146727587,0.07078759,70634.0,70628.0,0.07079312]
[1771146727794,0.07078876,70633.0,70628.0,0.07079312]
[1771146728001,0.07078876,70633.0,70627.0,0.07079405]
[1771146728201,0.07078876,70633.0,70628.0,0.07079324]
[1771146728457,0.07078876,70633.0,70627.0,0.07079405]
[1771146728804,0.09416291,70633.0,70627.0,0.07079405]
[1771146729033,0.07078876,70633.0,70627.0,0.07079405]
[1771146729367,0.07078971,70632.0,70626.0,0.07079366]
[1771146729657,0.28316178,70632.0,70621.0,0.07092971]
[1771146729808,0.07079446,70627.0,70621.0,0.07092971]
[1771146730610,0.02337415,70629.0,70621.0,0.00012976]
[1771146730816,0.02337415,70629.0,70625.0,0.07079576]
[1771146731016,0.07079215,70631.0,70625.0,0.07079576]
[1771146732294,0.02337415,70633.0,70623.0,0.28319175]
[1771146732452,0.97380027,70635.0,70621.0,0.00012976]
[1771146732453,0.070788,70634.0,70628.0,0.07079278]
[1771146732650,0.070788,70634.0,70629.0,0.07079213]
[1771146732876,0.07079079,70631.0,70623.0,0.0002]
[1771146733056,0.07079079,70631.0,70626.0,0.07079532]
[1771146733459,0.07079079,70631.0,70625.0,0.07079588]
[1771146733677,0.07079079,70631.0,70626.0,0.07079539]
[1771146734301,0.07079155,70630.0,70624.0,0.07079585]
[1771146734498,0.07079155,70630.0,70625.0,0.07079615]
[1771146734912,0.07079071,70631.0,70625.0,0.07079615]
[1771146735477,0.07079071,70631.0,70626.0,0.07079516]
[1771146735680,0.07079071,70631.0,70626.0,0.06020556]
[1771146736480,0.07079071,70631.0,70625.0,0.07079615]
[1771146736700,0.07079071,70631.0,70626.0,0.07079538]
[1771146736902,0.07079179,70630.0,70625.0,0.07079615]
[1771146737123,0.07079071,70631.0,70625.0,0.07079615]
[1771146737645,0.07079071,70631.0,70626.0,0.07079516]
[1771146738201,0.0004,70633.0,70623.0,0.0002]
[1771146738539,0.07118858,70633.0,70628.0,0.07079305]
[1771146738776,0.0004,70633.0,70632.0,0.07078944]
[1771146739304,0.19284577,70632.0,70624.0,0.28317856]
[1771146739507,0.07079675,70625.0,70620.0,0.000105]
[1771146739722,0.07079957,70622.0,70620.0,0.00016983]
[1771146739919,0.07080047,70621.0,70620.0,0.00016983]
[1771146740242,0.07080047,70621.0,70620.0,1e-08]
[1771146743716,0.90305324,70630.0,70620.0,1e-08]
[1771146743918,0.1212284,70686.0,70623.0,0.07079758]
[1771146743919,0.2831486,70635.0,70623.0,0.07079758]
[1771146744116,0.07079283,70629.0,70623.0,0.09458367]
[1771146744315,0.07079283,70629.0,70624.0,0.02385109]
[1771146744873,0.0004,70639.0,70628.0,0.07079326]
[1771146745021,0.0004,70639.0,70628.0,0.02378609]
[1771146745222,0.0707929,70629.0,70625.0,6.5e-05]
[1771146745420,0.0707929,70629.0,70625.0,0.02385109]
[1771146745825,0.07079254,70629.0,70625.0,0.02378609]
[1771146746494,0.07079382,70628.0,70623.0,0.07079746]
[1771146746717,0.07079471,70627.0,70623.0,0.02378609]
[1771146747075,0.07079455,70627.0,70623.0,0.02378609]
[1771146747339,0.07118944,70633.0,70623.0,0.02378609]
[1771146747525,0.07079364,70628.0,70623.0,0.09458417]
[1771146747671,0.07079237,70630.0,70625.0,0.07079616]
[1771146748019,0.07079388,70628.0,70623.0,0.09458414]
[1771146748247,0.07078944,70632.0,70624.0,0.07079688]
[1771146748425,0.07079296,70629.0,70624.0,0.07079726]
[1771146748572,0.0004,70633.0,70626.0,0.07079507]
[1771146748769,0.07079084,70631.0,70625.0,0.07079621]
[1771146749169,0.07079203,70630.0,70624.0,0.0707956]
[1771146749598,0.0004,70633.0,70623.0,0.02378609]
[1771146749794,0.07078981,70632.0,70626.0,0.07079494]
[1771146750442,0.07079055,70631.0,70626.0,0.07064743]
[1771146751426,0.28315777,70632.0,70623.0,0.02378609]
[1771146751614,0.07079374,70628.0,70623.0,0.09458405]
[1771146751814,0.07083156,70630.0,70625.0,0.07079604]
[1771146752217,4e-05,70630.0,70625.0,0.07079604]
[1771146752421,0.07079274,70629.0,70624.0,0.07079577]
[1771146752641,4e-05,70630.0,70625.0,0.0707957]
[1771146752952,4e-05,70630.0,70625.0,0.07079604]
[1771146753161,0.07079245,70629.0,70624.0,0.07079719]
[1771146753950,0.07079245,70629.0,70623.0,0.07079833]
[1771146754145,4e-05,70630.0,70624.0,0.07079737]
[1771146754341,4e-05,70630.0,70620.0,0.90301324]
[1771146754549,4e-05,70630.0,70627.0,0.07079375]
[1771146756060,4e-05,70630.0,70626.0,0.07079375]
[1771146756749,4e-05,70630.0,70620.0,1.08524934]
[1771146756750,0.07083177,70630.0,70620.0,0.1822361]
[1771146756898,0.07083177,70630.0,70625.0,0.07079575]
[1771146757100,0.07079256,70629.0,70624.0,0.07079575]
[1771146757689,0.07079256,70629.0,70623.0,0.07079682]
[1771146758263,0.07079256,70629.0,70624.0,0.07079723]
[1771146758396,0.07079488,70627.0,70622.0,0.07079905]
[1771146758596,0.0940463,70627.0,70622.0,0.07079905]
[1771146758831,0.02325142,70627.0,70622.0,0.07079905]
[1771146758993,0.07079414,70628.0,70622.0,0.07079905]
[1771146759576,0.07079414,70628.0,70623.0,0.07079831]
[1771146760290,0.07079437,70629.0,70623.0,0.07079831]
[1771146760291,0.07079437,70629.0,70624.0,0.07079737]
[1771146760638,0.07079437,70629.0,70623.0,0.07079831]
[1771146761789,0.07079437,70629.0,70624.0,0.07079737]
[1771146761964,0.07079352,70628.0,70623.0,0.07079831]
[1771146762693,0.07079437,70629.0,70623.0,0.07079831]
[1771146763889,0.00044,70630.0,70627.0,0.07079381]
[1771146764081,0.00044,70630.0,70625.0,0.07079575]
[1771146764922,0.00044,70630.0,70626.0,0.07079538]
[1771146765253,0.00044,70630.0,70626.0,0.07064787]
[1771146766967,0.00044,70630.0,70625.0,0.07079575]
[1771146767305,0.07123183,70630.0,70624.0,0.07079592]
[1771146767514,0.00044,70630.0,70625.0,0.07079613]
[1771146767888,0.07123151,70630.0,70625.0,0.07079613]
[1771146768146,0.07123151,70630.0,70624.0,0.07079592]
[1771146768347,0.071232,70630.0,70624.0,0.07079592]
[1771146768563,0.00044,70630.0,70625.0,0.07079613]
[1771146768913,0.07123171,70630.0,70625.0,0.07079613]
[1771146769134,0.00044,70630.0,70625.0,0.07079613]
[1771146769449,0.0712315,70630.0,70625.0,0.07079613]
[1771146769651,0.00044,70630.0,70625.0,0.07079613]
[1771146770535,0.00044,70630.0,70626.0,0.07079522]
[1771146771923,0.00044,70630.0,70627.0,0.07079408]
[1771146774341,0.00044,70630.0,70629.0,1e-08]
[1771146775030,0.00044,70630.0,70629.0,0.07079246]
[1771146777359,0.02493992,70630.0,70629.0,1e-08]
[1771146779599,0.28328764,70636.0,70629.0,1e-08]
[1771146779600,0.0001441,70636.0,70632.0,0.07078944]
[1771146779810,0.0001441,70636.0,70634.0,0.07078678]
[1771146780012,0.0001441,70636.0,70635.0,0.07078643]
[1771146780578,0.0004,70638.0,70636.0,0.07078459]
[1771146780916,0.0004,70638.0,70634.0,0.07078732]
[1771146781574,0.02489992,70638.0,70634.0,0.07078732]
[1771146781991,0.02489992,70638.0,70635.0,0.0707863]
[1771146782142,0.0004,70638.0,70636.0,0.07078537]
[1771146782347,0.0004,70638.0,70637.0,0.07078443]
[1771146784096,0.0004,70638.0,70636.0,0.07078537]
[1771146784328,0.0004,70638.0,70620.0,0.00024]
[1771146784329,0.07079144,70630.0,70620.0,0.00024]
[1771146784498,0.90290364,70630.0,70623.0,0.07079806]
[1771146784700,0.0707936,70628.0,70623.0,0.07079806]
[1771146784906,0.02449992,70627.0,70624.0,0.07079667]
[1771146785328,0.07079263,70629.0,70623.0,0.07079658]
[1771146785760,0.07079263,70629.0,70626.0,0.0002]
[1771146785932,0.02449992,70629.0,70626.0,5.249e-05]
[1771146786139,0.07078548,70636.0,70630.0,0.07079071]
[1771146787023,0.36413992,70638.0,70626.0,5.249e-05]
[1771146787225,0.36413992,70638.0,70632.0,0.07078903]
[1771146787428,0.36413992,70638.0,70626.0,0.17665965]
[1771146787429,0.0004,70638.0,70627.0,0.29444161]
[1771146787631,0.0004,70638.0,70633.0,0.07078804]
[1771146787866,0.0004,70638.0,70634.0,0.07078677]
[1771146788250,0.0004,70638.0,70632.0,0.07078906]
[1771146788655,0.07118411,70638.0,70632.0,0.07078906]
[1771146789154,0.07078445,70637.0,70631.0,0.07078948]
[1771146789561,0.07078445,70637.0,70632.0,0.07078935]
[1771146789779,0.07118411,70638.0,70632.0,0.07078935]
[1771146790309,0.07078443,70637.0,70632.0,0.07078935]
[1771146790945,0.07078617,70636.0,70630.0,0.07079106]
[1771146792392,0.07078617,70636.0,70631.0,0.07079035]
[1771146792589,0.07078443,70637.0,70631.0,0.07079035]
[1771146793809,0.07118443,70637.0,70631.0,0.07079035]
[1771146794214,0.07078546,70636.0,70631.0,0.07079035]
[1771146794556,0.07078546,70636.0,70630.0,0.07079106]
[1771146796498,0.07078976,70632.0,70624.0,0.01126581]
[1771146796684,0.07079058,70631.0,70626.0,0.07091281]
[1771146797108,0.07078995,70632.0,70627.0,0.07079429]
[1771146797399,0.07078995,70632.0,70626.0,0.07091281]
[1771146797758,0.07078995,70632.0,70627.0,0.07079433]
[1771146798100,0.02338847,70631.0,70627.0,0.07079433]
[1771146798636,0.02338847,70631.0,70626.0,0.33935749]
[1771146798783,0.07079097,70631.0,70626.0,0.41015257]
[1771146798981,0.02338847,70630.0,70627.0,0.07079435]
[1771146799191,0.02338847,70630.0,70626.0,0.41015257]
[1771146799989,0.02338847,70630.0,70626.0,0.4101526]
[1771146800397,0.02338847,70630.0,70627.0,0.07079402]
[1771146801079,0.02338847,70630.0,70626.0,0.4101526]
[1771146801374,0.07079097,70632.0,70626.0,0.4101526]
[1771146801625,0.07119097,70632.0,70626.0,0.4101526]
[1771146802213,0.02338847,70630.0,70626.0,0.33935749]
[1771146802414,0.02338847,70630.0,70626.0,0.41015262]
[1771146803039,0.09418019,70630.0,70626.0,0.33935749]
[1771146803274,0.02338847,70630.0,70626.0,0.41015254]
[1771146807565,0.02338847,70630.0,70626.0,0.33935749]
[1771146807714,0.0004,70632.0,70629.0,0.07079161]
[1771146807918,0.0004,70632.0,70630.0,0.07079127]
[1771146808292,0.0004,70632.0,70628.0,0.07079279]
[1771146808633,0.0004,70632.0,70628.0,0.07130069]
[1771146811652,0.0004,70632.0,70627.0,0.0002]
[1771146811850,0.09338788,70629.0,70627.0,0.0002]
[1771146812364,0.02259526,70631.0,70627.0,0.07099396]
[1771146812608,0.09338576,70631.0,70627.0,0.0002]
[1771146813378,0.07079429,70628.0,70623.0,0.0002]
[1771146813724,0.09338955,70628.0,70623.0,0.07099806]
[1771146815247,0.07079429,70628.0,70623.0,0.07099806]
[1771146816596,0.07079312,70629.0,70623.0,0.07099806]
[1771146817040,0.07079355,70628.0,70623.0,0.07099806]
[1771146817398,0.09338881,70628.0,70623.0,0.07099806]
[1771146820713,0.02259526,70628.0,70623.0,0.07099806]
[1771146820932,0.0004,70632.0,70623.0,0.07099806]
[1771146820933,0.0004,70632.0,70624.0,0.07079746]
[1771146821545,0.07118948,70632.0,70627.0,0.07079398]
[1771146821920,0.0004,70632.0,70627.0,0.07079398]
[1771146822155,0.0004,70632.0,70628.0,0.07079335]
[1771146822366,0.0004,70632.0,70627.0,0.07079423]
[1771146822949,0.0711897,70632.0,70627.0,0.07079423]
[1771146824392,0.0004,70632.0,70629.0,0.07079233]
[1771146824592,0.0004,70632.0,70628.0,0.0707931]
[1771146824794,0.0004,70632.0,70628.0,0.07074941]
[1771146824995,0.0711898,70632.0,70627.0,0.07079346]
[1771146825196,0.0711898,70632.0,70627.0,0.07099346]
[1771146826659,0.0711898,70632.0,70627.0,0.0002]
[1771146826862,0.09477573,70632.0,70627.0,0.0002]
[1771146827333,0.07079183,70630.0,70627.0,0.0002]
[1771146828590,0.07079053,70631.0,70627.0,0.0002]
[1771146831141,0.0004,70632.0,70627.0,0.0002]
[1771146831339,0.0004,70632.0,70628.0,0.07079296]
[1771146831538,0.0004,70632.0,70627.0,0.07099408]
[1771146832148,0.0004,70632.0,70628.0,0.0707933]
[1771146832961,0.0004,70631.0,70628.0,0.0707933]
[1771146833165,0.0004,70638.0,70627.0,0.02471738]
[1771146833391,0.0004,70638.0,70633.0,0.07078683]
[1771146833554,0.0004,70638.0,70631.0,0.33924]
[1771146833758,0.0004,70638.0,70634.0,0.07078741]
[1771146833962,0.0004,70638.0,70633.0,0.07078757]
[1771146834164,0.0004,70638.0,70632.0,0.0707892]
[1771146834358,0.07118404,70638.0,70631.0,0.41002876]
[1771146834552,0.07118404,70638.0,70632.0,0.07078886]
[1771146834966,0.07118444,70637.0,70632.0,0.07078886]
[1771146835168,0.07118444,70637.0,70631.0,0.41002892]
[1771146835367,0.0707948,70627.0,70625.0,6.5e-05]
[1771146835570,0.17149992,70636.0,70625.0,0.07086097]
[1771146835571,0.02358593,70631.0,70625.0,0.07086097]
[1771146835772,1.66465872,70659.0,70626.0,0.28336935]
[1771146835971,0.28314217,70636.0,70627.0,0.07079371]
[1771146836179,0.07078858,70633.0,70627.0,0.07079371]
[1771146836558,0.07118455,70637.0,70626.0,0.30788673]
[1771146836758,0.07118455,70637.0,70630.0,0.07079096]
[1771146836992,0.07118455,70637.0,70631.0,0.07079005]
[1771146837405,0.07078598,70636.0,70627.0,0.28317774]
[1771146837582,0.07078649,70635.0,70629.0,0.3541611]
[1771146838793,0.07078598,70636.0,70629.0,0.3541611]
[1771146838995,0.07078598,70636.0,70630.0,0.07079118]
[1771146839130,0.07078671,70635.0,70629.0,0.3541611]
[1771146839743,0.07118671,70635.0,70629.0,0.3541611]
[1771146840814,0.07118671,70635.0,70630.0,0.07079134]
[1771146841057,0.0004,70635.0,70630.0,0.07079134]
[1771146841409,0.0004,70635.0,70630.0,0.28336935]
[1771146841618,0.0004,70635.0,70632.0,0.07078904]
[1771146842155,0.0004,70635.0,70631.0,0.07078968]
[1771146842356,0.0004,70635.0,70633.0,0.28336935]
[1771146846872,0.0004,70635.0,70631.0,0.41002968]
[1771146847061,0.0004,70635.0,70633.0,0.28336935]
[1771146847623,0.0004,70635.0,70631.0,0.41002968]
[1771146847825,0.0004,70638.0,70634.0,0.070787]
[1771146848236,0.07118352,70638.0,70633.0,0.07078774]
[1771146848586,0.0004,70638.0,70633.0,0.07078774]
[1771146848793,0.07118359,70638.0,70633.0,0.07078774]
[1771146849029,0.07078535,70637.0,70631.0,0.339305]
[1771146849236,0.07078566,70636.0,70632.0,0.28336935]
[1771146851859,0.07078566,70636.0,70632.0,0.12561232]
[1771146852558,0.0004,70638.0,70633.0,0.07078796]
[1771146852559,0.07126867,70638.0,70633.0,0.07078796]
[1771146852919,0.07126867,70638.0,70632.0,0.19640117]
[1771146853060,0.07078494,70637.0,70632.0,0.19640117]
[1771146853682,0.07126867,70638.0,70632.0,0.19640117]
[1771146853942,0.07078594,70636.0,70632.0,0.00729367]
[1771146854232,0.0004,70636.0,70632.0,0.07808255]
[1771146854440,0.0004,70636.0,70632.0,0.00729367]
[1771146854974,0.07118557,70636.0,70632.0,0.00729367]
[1771146855175,0.0004,70636.0,70632.0,0.00729367]
[1771146855377,0.0004,70636.0,70632.0,0.07808305]
[1771146855578,0.0004,70636.0,70633.0,0.07078826]
[1771146856092,0.02335035,70656.0,70632.0,0.16432869]
[1771146856279,0.02335035,70656.0,70648.0,0.0707734]
[1771146856280,0.07076608,70656.0,70648.0,0.0707734]
[1771146856496,0.07089591,70654.0,70649.0,0.29084885]
[1771146857076,0.07076843,70653.0,70649.0,0.29084885]
[1771146857493,0.07082971,70653.0,70649.0,0.29084885]
[1771146857684,0.07082971,70653.0,70649.0,0.2841723]
[1771146858098,6.128e-05,70653.0,70649.0,0.2841723]